[Event "Titled Tuesday Blitz September 13 Late 2022"]
[White "Hjartarson, Johann"]
[Black "Pap, Gyula"]
[WhiteFideId "2300044"]
[BlackFideId "725323"]
[WhiteElo "2458"]
[BlackElo "2519"]
[Result "0-1"]
[Round "06"]
[TimeControl "180+1"]
[Date "2022.09.13"]
[WhiteClock "0:00:01"]
[BlackClock "0:00:06"]

1. e4 {[%clk 0:02:27]}  e5 {[%clk 0:02:29]} 2. Nf3 {[%clk 0:02:26]}  Nc6 {[%clk 0:02:30]} 3. Bb5 {[%clk 0:02:25]}  Nf6 {[%clk 0:02:30]} 4. O-O {[%clk 0:02:25]}  Nxe4 {[%clk 0:02:30]} 5. d4 {[%clk 0:02:25]}  Nd6 {[%clk 0:02:30]} 6. Bxc6 {[%clk 0:02:25]}  dxc6 {[%clk 0:02:31]} 7. dxe5 {[%clk 0:02:25]}  Nf5 {[%clk 0:02:32]} 8. Qxd8+ {[%clk 0:02:25]}  Kxd8 {[%clk 0:02:32]} 9. Nc3 {[%clk 0:02:25]}  h6 {[%clk 0:02:32]} 10. h3 {[%clk 0:02:25]}  Bd7 {[%clk 0:02:22]} 11. b3 {[%clk 0:02:21]}  Kc8 {[%clk 0:02:21]} 12. Bb2 {[%clk 0:02:18]}  a5 {[%clk 0:02:16]} 13. Rad1 {[%clk 0:02:16]}  Ne7 {[%clk 0:01:56]} 14. Nd4 {[%clk 0:02:06]}  Nd5 {[%clk 0:01:33]} 15. f4 {[%clk 0:01:58]}  Ne3 {[%clk 0:01:32]} 16. f5 {[%clk 0:01:44]}  Bc5 {[%clk 0:01:21]} 17. e6 {[%clk 0:01:28]}  fxe6 {[%clk 0:01:15]} 18. fxe6 {[%clk 0:01:26]}  Be8 {[%clk 0:01:05]} 19. Ne4 {[%clk 0:01:22]}  Bb6 {[%clk 0:00:55]} 20. e7 {[%clk 0:01:16]}  Nxd1 {[%clk 0:00:36]} 21. Rxd1 {[%clk 0:01:10]}  Bd7 {[%clk 0:00:36]} 22. Kh2 {[%clk 0:00:56]}  Re8 {[%clk 0:00:35]} 23. Ba3 {[%clk 0:00:48]}  a4 {[%clk 0:00:35]} 24. Bb4 {[%clk 0:00:47]}  axb3 {[%clk 0:00:34]} 25. axb3 {[%clk 0:00:46]}  Bxd4 {[%clk 0:00:31]} 26. Rxd4 {[%clk 0:00:45]}  b6 {[%clk 0:00:32]} 27. Rd2 {[%clk 0:00:20]}  c5 {[%clk 0:00:31]} 28. Bc3 {[%clk 0:00:20]}  Rxe7 {[%clk 0:00:30]} 29. Ng3 {[%clk 0:00:21]}  Kb7 {[%clk 0:00:23]} 30. Nh5 {[%clk 0:00:20]}  g6 {[%clk 0:00:23]} 31. Nf4 {[%clk 0:00:18]}  Be8 {[%clk 0:00:18]} 32. Bf6 {[%clk 0:00:16]}  Rd7 {[%clk 0:00:17]} 33. Re2 {[%clk 0:00:15]}  Bf7 {[%clk 0:00:17]} 34. Nd3 {[%clk 0:00:14]}  Re8 {[%clk 0:00:16]} 35. Rf2 {[%clk 0:00:14]}  Bg8 {[%clk 0:00:07]} 36. Ne5 {[%clk 0:00:12]}  Rd6 {[%clk 0:00:08]} 37. Nxg6 {[%clk 0:00:10]}  Ree6 {[%clk 0:00:07]} 38. Ne7 {[%clk 0:00:08]}  Rxf6 {[%clk 0:00:07]} 39. Rxf6 {[%clk 0:00:08]}  Rxf6 {[%clk 0:00:08]} 40. Nxg8 {[%clk 0:00:08]}  Re6 {[%clk 0:00:09]} 41. Kg3 {[%clk 0:00:07]}  b5 {[%clk 0:00:09]} 42. Kf4 {[%clk 0:00:07]}  b4 {[%clk 0:00:09]} 43. g4 {[%clk 0:00:04]}  Re2 {[%clk 0:00:09]} 44. Nxh6 {[%clk 0:00:03]}  c4 {[%clk 0:00:08]} 45. g5 {[%clk 0:00:01]}  Rxc2 {[%clk 0:00:08]} 46. g6 {[%clk 0:00:01]}  Rf2+ {[%clk 0:00:06]} 0-1


[Site "https://www.chess.com"]

[Event "Titled Tuesday Blitz September 13 Late 2022"]
[White "Ibrahimli, Murad"]
[Black "Gascon Del Nogal, Jose Rafael"]
[WhiteFideId "13410229"]
[BlackFideId "3902463"]
[WhiteElo "2109"]
[BlackElo "2473"]
[Result "1/2-1/2"]
[Round "06"]
[TimeControl "180+1"]
[Date "2022.09.13"]
[WhiteClock "0:00:04"]
[BlackClock "0:00:04"]

1. e4 {[%clk 0:03:00]}  g6 {[%clk 0:02:59]} 2. d4 {[%clk 0:03:00]}  Bg7 {[%clk 0:02:59]} 3. Nf3 {[%clk 0:03:01]}  d6 {[%clk 0:02:59]} 4. Nc3 {[%clk 0:03:01]}  a6 {[%clk 0:02:58]} 5. a4 {[%clk 0:03:00]}  Bg4 {[%clk 0:02:58]} 6. Be3 {[%clk 0:02:57]}  Nc6 {[%clk 0:02:58]} 7. Be2 {[%clk 0:02:57]}  Bxf3 {[%clk 0:02:57]} 8. Bxf3 {[%clk 0:02:57]}  e5 {[%clk 0:02:58]} 9. d5 {[%clk 0:02:53]}  Nd4 {[%clk 0:02:58]} 10. Bxd4 {[%clk 0:02:53]}  exd4 {[%clk 0:02:58]} 11. Ne2 {[%clk 0:02:54]}  Nf6 {[%clk 0:02:28]} 12. Nxd4 {[%clk 0:02:50]}  O-O {[%clk 0:02:28]} 13. O-O {[%clk 0:02:50]}  Re8 {[%clk 0:02:29]} 14. Re1 {[%clk 0:02:50]}  Nxd5 {[%clk 0:02:27]} 15. exd5 {[%clk 0:02:49]}  Rxe1+ {[%clk 0:02:27]} 16. Qxe1 {[%clk 0:02:50]}  Bxd4 {[%clk 0:02:27]} 17. c3 {[%clk 0:02:51]}  Ba7 {[%clk 0:02:12]} 18. a5 {[%clk 0:02:47]}  Qf6 {[%clk 0:02:08]} 19. Qe4 {[%clk 0:02:42]}  Bc5 {[%clk 0:01:51]} 20. Re1 {[%clk 0:02:39]}  Kf8 {[%clk 0:01:43]} 21. g3 {[%clk 0:02:38]}  h5 {[%clk 0:01:42]} 22. h4 {[%clk 0:02:37]}  Rb8 {[%clk 0:01:24]} 23. Kg2 {[%clk 0:02:36]}  Ra8 {[%clk 0:01:23]} 24. Re2 {[%clk 0:02:34]}  Rd8 {[%clk 0:01:23]} 25. Kf1 {[%clk 0:02:27]}  Ra8 {[%clk 0:01:22]} 26. Bg2 {[%clk 0:02:27]}  Rb8 {[%clk 0:01:22]} 27. Bh3 {[%clk 0:02:27]}  Rd8 {[%clk 0:01:21]} 28. Kg2 {[%clk 0:02:26]}  Kg7 {[%clk 0:01:21]} 29. f4 {[%clk 0:02:10]}  Kf8 {[%clk 0:01:19]} 30. Bd7 {[%clk 0:01:55]}  Rb8 {[%clk 0:01:05]} 31. Qd3 {[%clk 0:01:33]}  Kg7 {[%clk 0:00:50]} 32. Qc4 {[%clk 0:01:20]}  Rd8 {[%clk 0:00:43]} 33. Bh3 {[%clk 0:01:16]}  b5 {[%clk 0:00:40]} 34. axb6 {[%clk 0:01:15]}  Bxb6 {[%clk 0:00:40]} 35. Qxa6 {[%clk 0:01:15]}  Rb8 {[%clk 0:00:38]} 36. Qd3 {[%clk 0:01:15]}  Ra8 {[%clk 0:00:36]} 37. Qe4 {[%clk 0:00:54]}  Ra1 {[%clk 0:00:33]} 38. Kh2 {[%clk 0:00:54]}  Bg1+ {[%clk 0:00:32]} 39. Kg2 {[%clk 0:00:54]}  Bb6 {[%clk 0:00:32]} 40. Bd7 {[%clk 0:00:49]}  Qd8 {[%clk 0:00:31]} 41. Qe8 {[%clk 0:00:39]}  Qxe8 {[%clk 0:00:22]} 42. Bxe8 {[%clk 0:00:40]}  Rg1+ {[%clk 0:00:20]} 43. Kh2 {[%clk 0:00:40]}  Rb1 {[%clk 0:00:20]} 44. Ba4 {[%clk 0:00:30]}  Kf6 {[%clk 0:00:19]} 45. Bb5 {[%clk 0:00:27]}  Bc5 {[%clk 0:00:18]} 46. Bc4 {[%clk 0:00:26]}  Bb6 {[%clk 0:00:18]} 47. Rc2 {[%clk 0:00:14]}  Be3 {[%clk 0:00:15]} 48. Kg2 {[%clk 0:00:12]}  Rg1+ {[%clk 0:00:13]} 49. Kf3 {[%clk 0:00:12]}  Bb6 {[%clk 0:00:14]} 50. b4 {[%clk 0:00:09]}  Ra1 {[%clk 0:00:10]} 51. Bd3 {[%clk 0:00:09]}  Ra3 {[%clk 0:00:09]} 52. Ke4 {[%clk 0:00:08]}  Ra1 {[%clk 0:00:09]} 53. c4 {[%clk 0:00:07]}  Re1+ {[%clk 0:00:09]} 54. Be2 {[%clk 0:00:07]}  Rb1 {[%clk 0:00:08]} 55. b5 {[%clk 0:00:04]}  Rg1 {[%clk 0:00:08]} 56. Kf3 {[%clk 0:00:04]}  Ra1 {[%clk 0:00:06]} 57. Bd3 {[%clk 0:00:04]}  Ra3 {[%clk 0:00:06]} 58. Ke2 {[%clk 0:00:05]}  Ra1 {[%clk 0:00:04]} 59. Kf3 {[%clk 0:00:04]}  Re1 {[%clk 0:00:04]} 60. Be2 {[%clk 0:00:04]}  Ra1 {[%clk 0:00:04]} 61. Bd3 {[%clk 0:00:04]} 1/2-1/2


[Site "https://www.chess.com"]

[Event "Titled Tuesday Blitz September 13 Late 2022"]
[White "Keymer, Vincent"]
[Black "Jobava, Baadur"]
[WhiteFideId "12940690"]
[BlackFideId "13601520"]
[WhiteElo "2585"]
[BlackElo "2582"]
[Result "0-1"]
[Round "06"]
[TimeControl "180+1"]
[Date "2022.09.13"]
[WhiteClock "0:00:05"]
[BlackClock "0:00:44"]

1. Nf3 {[%clk 0:03:00]}  d5 {[%clk 0:03:00]} 2. e3 {[%clk 0:03:00]}  c5 {[%clk 0:02:57]} 3. b3 {[%clk 0:03:00]}  Nc6 {[%clk 0:02:55]} 4. Bb2 {[%clk 0:03:00]}  Bg4 {[%clk 0:02:54]} 5. Bb5 {[%clk 0:02:58]}  e6 {[%clk 0:02:54]} 6. h3 {[%clk 0:02:52]}  Bh5 {[%clk 0:02:54]} 7. c4 {[%clk 0:02:42]}  Ne7 {[%clk 0:02:51]} 8. cxd5 {[%clk 0:02:36]}  exd5 {[%clk 0:02:51]} 9. O-O {[%clk 0:02:26]}  a6 {[%clk 0:02:51]} 10. Be2 {[%clk 0:02:26]}  Rc8 {[%clk 0:02:18]} 11. d4 {[%clk 0:02:13]}  cxd4 {[%clk 0:02:16]} 12. Nxd4 {[%clk 0:02:11]}  Bxe2 {[%clk 0:02:17]} 13. Nxe2 {[%clk 0:02:08]}  Qd7 {[%clk 0:01:38]} 14. Nbc3 {[%clk 0:02:05]}  Rd8 {[%clk 0:01:38]} 15. Re1 {[%clk 0:01:29]}  Ng6 {[%clk 0:01:37]} 16. Na4 {[%clk 0:01:08]}  Bb4 {[%clk 0:01:36]} 17. Bc3 {[%clk 0:00:46]}  O-O {[%clk 0:01:30]} 18. Bxb4 {[%clk 0:00:39]}  Nxb4 {[%clk 0:01:31]} 19. Qd2 {[%clk 0:00:39]}  Nc6 {[%clk 0:01:30]} 20. Red1 {[%clk 0:00:39]}  Nge7 {[%clk 0:01:25]} 21. Rac1 {[%clk 0:00:38]}  h6 {[%clk 0:01:16]} 22. Nf4 {[%clk 0:00:35]}  d4 {[%clk 0:01:13]} 23. Ne2 {[%clk 0:00:25]}  Nf5 {[%clk 0:01:10]} 24. Qb2 {[%clk 0:00:24]}  Rfe8 {[%clk 0:01:05]} 25. Nc5 {[%clk 0:00:23]}  Qe7 {[%clk 0:00:59]} 26. Nxd4 {[%clk 0:00:22]}  Ncxd4 {[%clk 0:00:59]} 27. exd4 {[%clk 0:00:23]}  Qg5 {[%clk 0:00:58]} 28. Qc3 {[%clk 0:00:17]}  Nxd4 {[%clk 0:00:55]} 29. Kf1 {[%clk 0:00:10]}  Ne2 {[%clk 0:00:49]} 30. Qc2 {[%clk 0:00:04]}  Nxc1 {[%clk 0:00:47]} 31. Rxc1 {[%clk 0:00:05]}  Rc8 {[%clk 0:00:44]} 0-1


[Site "https://www.chess.com"]

[Event "Titled Tuesday Blitz September 13 Late 2022"]
[White "Kobo, Ori"]
[Black "Fishbein, Alexander"]
[WhiteFideId "2812320"]
[BlackFideId "2000377"]
[WhiteElo "2420"]
[BlackElo "2410"]
[Result "1-0"]
[Round "06"]
[TimeControl "180+1"]
[Date "2022.09.13"]
[WhiteClock "0:00:18"]
[BlackClock "0:00:02"]

1. Nf3 {[%clk 0:03:00]}  Nf6 {[%clk 0:02:58]} 2. c4 {[%clk 0:03:00]}  g6 {[%clk 0:02:58]} 3. g3 {[%clk 0:03:00]}  Bg7 {[%clk 0:02:58]} 4. Bg2 {[%clk 0:03:00]}  O-O {[%clk 0:02:58]} 5. Nc3 {[%clk 0:03:00]}  d6 {[%clk 0:02:59]} 6. d4 {[%clk 0:03:01]}  Nc6 {[%clk 0:02:59]} 7. O-O {[%clk 0:03:00]}  e5 {[%clk 0:03:00]} 8. Be3 {[%clk 0:03:00]}  Ng4 {[%clk 0:02:38]} 9. Bg5 {[%clk 0:02:59]}  f6 {[%clk 0:02:38]} 10. Bc1 {[%clk 0:02:57]}  f5 {[%clk 0:02:38]} 11. Bg5 {[%clk 0:02:44]}  Bf6 {[%clk 0:02:36]} 12. Bxf6 {[%clk 0:02:41]}  Nxf6 {[%clk 0:02:33]} 13. dxe5 {[%clk 0:02:39]}  dxe5 {[%clk 0:02:29]} 14. Qb3 {[%clk 0:02:32]}  e4 {[%clk 0:02:25]} 15. Rad1 {[%clk 0:02:23]}  Qe7 {[%clk 0:02:21]} 16. Nd5 {[%clk 0:02:16]}  Qg7 {[%clk 0:02:06]} 17. Ng5 {[%clk 0:02:07]}  h6 {[%clk 0:01:55]} 18. Nh3 {[%clk 0:02:07]}  g5 {[%clk 0:01:46]} 19. f3 {[%clk 0:02:00]}  Nxd5 {[%clk 0:01:28]} 20. cxd5 {[%clk 0:01:58]}  Nd4 {[%clk 0:01:28]} 21. Qc4 {[%clk 0:01:50]}  Nxe2+ {[%clk 0:01:11]} 22. Qxe2 {[%clk 0:01:48]}  exf3 {[%clk 0:01:11]} 23. Bxf3 {[%clk 0:01:37]}  g4 {[%clk 0:01:11]} 24. Bxg4 {[%clk 0:01:24]}  Qxg4 {[%clk 0:01:03]} 25. Qg2 {[%clk 0:01:24]}  Bd7 {[%clk 0:00:56]} 26. Nf4 {[%clk 0:01:20]}  Kh7 {[%clk 0:00:52]} 27. Rde1 {[%clk 0:01:05]}  Rae8 {[%clk 0:00:51]} 28. Qc2 {[%clk 0:01:01]}  c6 {[%clk 0:00:30]} 29. d6 {[%clk 0:01:01]}  Qg7 {[%clk 0:00:27]} 30. Qc5 {[%clk 0:00:51]}  b6 {[%clk 0:00:24]} 31. Qf2 {[%clk 0:00:50]}  c5 {[%clk 0:00:20]} 32. Nd5 {[%clk 0:00:44]}  Qd4 {[%clk 0:00:17]} 33. Qxd4 {[%clk 0:00:39]}  cxd4 {[%clk 0:00:18]} 34. Re7+ {[%clk 0:00:39]}  Rxe7 {[%clk 0:00:16]} 35. dxe7 {[%clk 0:00:40]}  Rf7 {[%clk 0:00:11]} 36. Re1 {[%clk 0:00:31]}  d3 {[%clk 0:00:11]} 37. Kf2 {[%clk 0:00:23]}  d2 {[%clk 0:00:09]} 38. Rd1 {[%clk 0:00:23]}  Be8 {[%clk 0:00:05]} 39. Rxd2 {[%clk 0:00:23]}  Kg7 {[%clk 0:00:05]} 40. Re2 {[%clk 0:00:20]}  Kg6 {[%clk 0:00:03]} 41. Nc7 {[%clk 0:00:20]}  Bc6 {[%clk 0:00:03]} 42. Re6+ {[%clk 0:00:18]}  Rf6 {[%clk 0:00:03]} 43. Rxc6 {[%clk 0:00:18]}  Rxc6 {[%clk 0:00:02]} 44. e8=Q+ {[%clk 0:00:18]} 1-0


[Site "https://www.chess.com"]

[Event "Titled Tuesday Blitz September 13 Late 2022"]
[White "Korchmar, Vasiliy"]
[Black "Ekdyshman, Mikhail"]
[WhiteFideId "24131750"]
[BlackFideId "4149416"]
[WhiteElo "2370"]
[BlackElo "2146"]
[Result "1-0"]
[Round "06"]
[TimeControl "180+1"]
[Date "2022.09.13"]
[WhiteClock "0:00:15"]
[BlackClock "0:00:06"]

1. e4 {[%clk 0:03:00]}  c5 {[%clk 0:02:59]} 2. Nf3 {[%clk 0:03:01]}  Nf6 {[%clk 0:02:59]} 3. e5 {[%clk 0:03:00]}  Nd5 {[%clk 0:02:58]} 4. Nc3 {[%clk 0:03:01]}  Nxc3 {[%clk 0:02:59]} 5. dxc3 {[%clk 0:03:02]}  Nc6 {[%clk 0:02:59]} 6. Bd3 {[%clk 0:02:53]}  e6 {[%clk 0:02:55]} 7. Bf4 {[%clk 0:02:49]}  Qb6 {[%clk 0:02:54]} 8. Rb1 {[%clk 0:02:39]}  Be7 {[%clk 0:02:54]} 9. h4 {[%clk 0:02:38]}  Qc7 {[%clk 0:02:52]} 10. Qe2 {[%clk 0:02:08]}  b6 {[%clk 0:02:39]} 11. Ng5 {[%clk 0:02:08]}  Bb7 {[%clk 0:02:37]} 12. Bg3 {[%clk 0:01:12]}  h6 {[%clk 0:02:26]} 13. Qh5 {[%clk 0:01:00]}  Bxg5 {[%clk 0:02:08]} 14. hxg5 {[%clk 0:00:59]}  Ne7 {[%clk 0:01:35]} 15. g6 {[%clk 0:00:54]}  Rf8 {[%clk 0:01:09]} 16. O-O {[%clk 0:00:45]}  Qc6 {[%clk 0:00:24]} 17. f3 {[%clk 0:00:44]}  O-O-O {[%clk 0:00:13]} 18. gxf7 {[%clk 0:00:41]}  c4 {[%clk 0:00:13]} 19. Be4 {[%clk 0:00:40]}  Qc5+ {[%clk 0:00:13]} 20. Bf2 {[%clk 0:00:41]}  Qb5 {[%clk 0:00:11]} 21. a4 {[%clk 0:00:33]}  Qa5 {[%clk 0:00:10]} 22. Bg6 {[%clk 0:00:21]}  Nxg6 {[%clk 0:00:09]} 23. Qxg6 {[%clk 0:00:22]}  Qxe5 {[%clk 0:00:10]} 24. Bh4 {[%clk 0:00:21]}  Qf5 {[%clk 0:00:06]} 25. Qxf5 {[%clk 0:00:21]}  exf5 {[%clk 0:00:06]} 26. Bxd8 {[%clk 0:00:21]}  Kxd8 {[%clk 0:00:06]} 27. a5 {[%clk 0:00:19]}  b5 {[%clk 0:00:06]} 28. a6 {[%clk 0:00:19]}  Bc6 {[%clk 0:00:06]} 29. b3 {[%clk 0:00:14]}  cxb3 {[%clk 0:00:06]} 30. cxb3 {[%clk 0:00:15]}  Rxf7 {[%clk 0:00:07]} 31. c4 {[%clk 0:00:15]}  b4 {[%clk 0:00:06]} 32. Rfd1 {[%clk 0:00:13]}  Kc7 {[%clk 0:00:06]} 33. Re1 {[%clk 0:00:13]}  Kb6 {[%clk 0:00:06]} 34. Ra1 {[%clk 0:00:13]}  g5 {[%clk 0:00:05]} 35. Re8 {[%clk 0:00:13]}  d6 {[%clk 0:00:03]} 36. Rb8+ {[%clk 0:00:13]}  Kc5 {[%clk 0:00:03]} 37. Rh8 {[%clk 0:00:12]}  g4 {[%clk 0:00:03]} 38. fxg4 {[%clk 0:00:10]}  fxg4 {[%clk 0:00:03]} 39. Rxh6 {[%clk 0:00:10]}  g3 {[%clk 0:00:03]} 40. Rg6 {[%clk 0:00:09]}  Kd4 {[%clk 0:00:03]} 41. Rxg3 {[%clk 0:00:10]}  d5 {[%clk 0:00:03]} 42. cxd5 {[%clk 0:00:09]}  Bxd5 {[%clk 0:00:04]} 43. Rd1+ {[%clk 0:00:10]}  Kc5 {[%clk 0:00:04]} 44. Rc1+ {[%clk 0:00:10]}  Kb6 {[%clk 0:00:04]} 45. Rf1 {[%clk 0:00:09]}  Rd7 {[%clk 0:00:03]} 46. Rd1 {[%clk 0:00:09]}  Kc5 {[%clk 0:00:02]} 47. Rgd3 {[%clk 0:00:08]}  Rd6 {[%clk 0:00:02]} 48. g4 {[%clk 0:00:08]}  Rd7 {[%clk 0:00:02]} 49. g5 {[%clk 0:00:09]}  Rd6 {[%clk 0:00:02]} 50. Kf2 {[%clk 0:00:08]}  Rd7 {[%clk 0:00:02]} 51. Kg3 {[%clk 0:00:09]}  Rd6 {[%clk 0:00:02]} 52. Rd4 {[%clk 0:00:09]}  Rd7 {[%clk 0:00:02]} 53. g6 {[%clk 0:00:08]}  Rd6 {[%clk 0:00:02]} 54. Rxd5+ {[%clk 0:00:08]}  Rxd5 {[%clk 0:00:02]} 55. Rxd5+ {[%clk 0:00:09]}  Kxd5 {[%clk 0:00:03]} 56. g7 {[%clk 0:00:10]}  Kd4 {[%clk 0:00:04]} 57. g8=Q {[%clk 0:00:11]}  Kc3 {[%clk 0:00:05]} 58. Qc4+ {[%clk 0:00:11]}  Kb2 {[%clk 0:00:06]} 59. Kf4 {[%clk 0:00:11]}  Ka3 {[%clk 0:00:05]} 60. Ke5 {[%clk 0:00:12]}  Ka2 {[%clk 0:00:04]} 61. Kd5 {[%clk 0:00:13]}  Ka3 {[%clk 0:00:05]} 62. Kc6 {[%clk 0:00:14]}  Ka2 {[%clk 0:00:05]} 63. Kb7 {[%clk 0:00:15]}  Ka3 {[%clk 0:00:06]} 64. Kxa7 {[%clk 0:00:15]} 1-0


[Site "https://www.chess.com"]

[Event "Titled Tuesday Blitz September 13 Late 2022"]
[White "Kravtsiv, Martyn"]
[Black "Martinez Alcantara, Jose Eduardo"]
[WhiteFideId "14113147"]
[BlackFideId "3805662"]
[WhiteElo "2694"]
[BlackElo "2703"]
[Result "1-0"]
[Round "06"]
[TimeControl "180+1"]
[Date "2022.09.13"]
[WhiteClock "0:00:17"]
[BlackClock "0:00:05"]

1. e4 {[%clk 0:03:00]}  Nc6 {[%clk 0:02:59]} 2. Nf3 {[%clk 0:02:59]}  d6 {[%clk 0:02:59]} 3. d4 {[%clk 0:02:58]}  Nf6 {[%clk 0:03:00]} 4. Nc3 {[%clk 0:02:55]}  g6 {[%clk 0:03:01]} 5. Bb5 {[%clk 0:02:51]}  a6 {[%clk 0:02:59]} 6. Ba4 {[%clk 0:02:41]}  b5 {[%clk 0:02:43]} 7. Bb3 {[%clk 0:02:41]}  Bg7 {[%clk 0:02:43]} 8. Qe2 {[%clk 0:02:34]}  Bg4 {[%clk 0:02:29]} 9. Be3 {[%clk 0:02:31]}  O-O {[%clk 0:02:25]} 10. O-O-O {[%clk 0:02:25]}  Na5 {[%clk 0:02:05]} 11. e5 {[%clk 0:02:21]}  Nxb3+ {[%clk 0:02:04]} 12. axb3 {[%clk 0:02:21]}  Nd7 {[%clk 0:02:04]} 13. h3 {[%clk 0:02:15]}  Bxf3 {[%clk 0:01:06]} 14. Qxf3 {[%clk 0:02:16]}  e6 {[%clk 0:01:00]} 15. h4 {[%clk 0:01:59]}  Qe7 {[%clk 0:01:00]} 16. Bg5 {[%clk 0:01:33]}  f6 {[%clk 0:00:59]} 17. exf6 {[%clk 0:01:30]}  Bxf6 {[%clk 0:01:00]} 18. Qg3 {[%clk 0:01:21]}  Bxg5+ {[%clk 0:00:43]} 19. hxg5 {[%clk 0:01:22]}  Rf5 {[%clk 0:00:44]} 20. f4 {[%clk 0:01:20]}  Raf8 {[%clk 0:00:44]} 21. Rh4 {[%clk 0:01:18]}  R8f7 {[%clk 0:00:44]} 22. Qe3 {[%clk 0:01:10]}  Nb6 {[%clk 0:00:40]} 23. g3 {[%clk 0:01:09]}  Nd5 {[%clk 0:00:30]} 24. Nxd5 {[%clk 0:01:05]}  exd5 {[%clk 0:00:31]} 25. Re1 {[%clk 0:01:04]}  Qxe3+ {[%clk 0:00:26]} 26. Rxe3 {[%clk 0:01:05]}  Rd7 {[%clk 0:00:27]} 27. Re8+ {[%clk 0:01:01]}  Rf8 {[%clk 0:00:26]} 28. Rxf8+ {[%clk 0:01:00]}  Kxf8 {[%clk 0:00:27]} 29. Kd2 {[%clk 0:01:00]}  c5 {[%clk 0:00:27]} 30. Rh1 {[%clk 0:00:59]}  Ke8 {[%clk 0:00:21]} 31. Re1+ {[%clk 0:00:56]}  Kf7 {[%clk 0:00:20]} 32. Kd3 {[%clk 0:00:48]}  c4+ {[%clk 0:00:18]} 33. Kd2 {[%clk 0:00:44]}  a5 {[%clk 0:00:13]} 34. bxc4 {[%clk 0:00:37]}  dxc4 {[%clk 0:00:12]} 35. d5 {[%clk 0:00:36]}  Re7 {[%clk 0:00:11]} 36. Rxe7+ {[%clk 0:00:32]}  Kxe7 {[%clk 0:00:12]} 37. Kc3 {[%clk 0:00:32]}  Kd7 {[%clk 0:00:10]} 38. g4 {[%clk 0:00:31]}  Ke7 {[%clk 0:00:10]} 39. Kd4 {[%clk 0:00:31]}  Kf7 {[%clk 0:00:09]} 40. Kc3 {[%clk 0:00:31]}  Ke7 {[%clk 0:00:09]} 41. b3 {[%clk 0:00:29]}  cxb3 {[%clk 0:00:07]} 42. Kxb3 {[%clk 0:00:30]}  Kd7 {[%clk 0:00:06]} 43. c4 {[%clk 0:00:29]}  b4 {[%clk 0:00:05]} 44. Ka4 {[%clk 0:00:29]}  Ke7 {[%clk 0:00:05]} 45. f5 {[%clk 0:00:29]}  Kf7 {[%clk 0:00:06]} 46. f6 {[%clk 0:00:28]}  Ke8 {[%clk 0:00:04]} 47. Kb3 {[%clk 0:00:27]}  Kf7 {[%clk 0:00:05]} 48. Ka4 {[%clk 0:00:23]}  h5 {[%clk 0:00:04]} 49. gxh6 {[%clk 0:00:22]}  Kxf6 {[%clk 0:00:05]} 50. g5+ {[%clk 0:00:21]}  Kf7 {[%clk 0:00:05]} 51. Kb3 {[%clk 0:00:20]}  Kf8 {[%clk 0:00:06]} 52. c5 {[%clk 0:00:18]}  dxc5 {[%clk 0:00:01]} 53. d6 {[%clk 0:00:19]}  c4+ {[%clk 0:00:02]} 54. Kxc4 {[%clk 0:00:18]}  b3 {[%clk 0:00:03]} 55. Kxb3 {[%clk 0:00:18]}  Kf7 {[%clk 0:00:04]} 56. h7 {[%clk 0:00:17]}  Ke6 {[%clk 0:00:04]} 57. h8=Q {[%clk 0:00:17]}  Kxd6 {[%clk 0:00:05]} 58. Qd4+ {[%clk 0:00:17]}  Ke6 {[%clk 0:00:03]} 59. Qc5 {[%clk 0:00:17]}  Kd7 {[%clk 0:00:04]} 60. Qxa5 {[%clk 0:00:17]}  Ke6 {[%clk 0:00:05]} 61. Kc4 {[%clk 0:00:17]} 1-0


[Site "https://www.chess.com"]

[Event "Titled Tuesday Blitz September 13 Late 2022"]
[White "Livaic, Leon"]
[Black "Xiong, Jeffery"]
[WhiteFideId "14531534"]
[BlackFideId "2047640"]
[WhiteElo "2540"]
[BlackElo "2714"]
[Result "1-0"]
[Round "06"]
[TimeControl "180+1"]
[Date "2022.09.13"]
[WhiteClock "0:00:09"]
[BlackClock "0:01:22"]

1. d4 {[%clk 0:03:00]}  d5 {[%clk 0:03:00]} 2. c4 {[%clk 0:03:01]}  e6 {[%clk 0:03:00]} 3. Nc3 {[%clk 0:03:00]}  Nf6 {[%clk 0:03:01]} 4. Nf3 {[%clk 0:02:58]}  dxc4 {[%clk 0:02:51]} 5. e3 {[%clk 0:02:56]}  a6 {[%clk 0:02:49]} 6. Bxc4 {[%clk 0:02:56]}  b5 {[%clk 0:02:49]} 7. Bb3 {[%clk 0:02:57]}  Bb7 {[%clk 0:02:49]} 8. O-O {[%clk 0:02:57]}  Nbd7 {[%clk 0:02:50]} 9. Qe2 {[%clk 0:02:39]}  c5 {[%clk 0:02:50]} 10. Rd1 {[%clk 0:02:39]}  Qc7 {[%clk 0:02:47]} 11. d5 {[%clk 0:02:32]}  c4 {[%clk 0:02:27]} 12. dxe6 {[%clk 0:02:32]}  fxe6 {[%clk 0:02:28]} 13. Bc2 {[%clk 0:02:32]}  Bd6 {[%clk 0:02:28]} 14. h3 {[%clk 0:02:21]}  O-O {[%clk 0:02:28]} 15. Ng5 {[%clk 0:02:13]}  Nc5 {[%clk 0:02:26]} 16. b4 {[%clk 0:01:26]}  cxb3 {[%clk 0:02:24]} 17. axb3 {[%clk 0:01:25]}  Bh2+ {[%clk 0:02:23]} 18. Kh1 {[%clk 0:01:25]}  Qe5 {[%clk 0:02:17]} 19. f4 {[%clk 0:01:12]}  Bxf4 {[%clk 0:02:16]} 20. exf4 {[%clk 0:01:10]}  Qxc3 {[%clk 0:02:17]} 21. Bb2 {[%clk 0:01:03]}  Qg3 {[%clk 0:02:16]} 22. Bd4 {[%clk 0:00:41]}  h6 {[%clk 0:02:11]} 23. Bxc5 {[%clk 0:00:37]}  hxg5 {[%clk 0:02:11]} 24. Bxf8 {[%clk 0:00:38]}  Rxf8 {[%clk 0:02:09]} 25. Rd3 {[%clk 0:00:31]}  Qxf4 {[%clk 0:02:05]} 26. Qxe6+ {[%clk 0:00:31]}  Kh8 {[%clk 0:02:05]} 27. Qe3 {[%clk 0:00:28]}  Qh4 {[%clk 0:01:37]} 28. Rf1 {[%clk 0:00:27]}  g4 {[%clk 0:01:35]} 29. Qg3 {[%clk 0:00:25]}  Qh6 {[%clk 0:01:31]} 30. Kg1 {[%clk 0:00:15]}  Re8 {[%clk 0:01:28]} 31. hxg4 {[%clk 0:00:15]}  Be4 {[%clk 0:01:27]} 32. g5 {[%clk 0:00:14]}  Qh5 {[%clk 0:01:25]} 33. gxf6 {[%clk 0:00:13]}  gxf6 {[%clk 0:01:26]} 34. Rd2 {[%clk 0:00:09]}  Rg8 {[%clk 0:01:22]} 35. Qh2 {[%clk 0:00:09]} 1-0


[Site "https://www.chess.com"]